[Event "Live Chess"]
[Site "Chess.com"]
[Date "2024.06.02"]
[Round "-"]
[White "WelshTiger"]
[Black "RichardABates"]
[Result "0-1"]
[WhiteElo "2455"]
[BlackElo "2346"]
[TimeControl "300"]
[EndTime "17:39:36 PDT"]
[Termination "RichardABates won on time"]

1. e4 {[%clk 0:04:57]} 1... c5 {[%clk 0:04:58.5]} 2. Nf3 {[%clk 0:04:55.8]} 2...
d6 {[%clk 0:04:57.2]} 3. d4 {[%clk 0:04:54.2]} 3... cxd4 {[%clk 0:04:55.8]} 4.
Nxd4 {[%clk 0:04:54.1]} 4... Nf6 {[%clk 0:04:54.5]} 5. Nc3 {[%clk 0:04:53.3]}
5... a6 {[%clk 0:04:53.2]} 6. h4 {[%clk 0:04:52.1]} 6... e5 {[%clk 0:04:49]} 7.
Nb3 {[%clk 0:04:51.2]} 7... Be6 {[%clk 0:04:44.7]} 8. f4 {[%clk 0:04:50.3]} 8...
exf4 {[%clk 0:04:42.8]} 9. Bxf4 {[%clk 0:04:48.8]} 9... Nc6 {[%clk 0:04:41.7]}
10. Qd2 {[%clk 0:04:47.8]} 10... Be7 {[%clk 0:04:35.7]} 11. O-O-O {[%clk
0:04:46.7]} 11... O-O {[%clk 0:04:22.1]} 12. Bxd6 {[%clk 0:04:44.5]} 12... Bxd6
{[%clk 0:04:16.5]} 13. Qxd6 {[%clk 0:04:43.6]} 13... Qxd6 {[%clk 0:04:05.6]} 14.
Rxd6 {[%clk 0:04:41.7]} 14... Rad8 {[%clk 0:04:03.6]} 15. Rxd8 {[%clk
0:04:26.9]} 15... Rxd8 {[%clk 0:04:01.9]} 16. Nc5 {[%clk 0:04:20.7]} 16... Bc8
{[%clk 0:03:57.4]} 17. Bd3 {[%clk 0:04:09.6]} 17... Ne5 {[%clk 0:03:52.1]} 18.
Rd1 {[%clk 0:03:56.3]} 18... b6 {[%clk 0:03:50.1]} 19. Nb3 {[%clk 0:03:55.4]}
19... Bg4 {[%clk 0:03:46.1]} 20. Rd2 {[%clk 0:03:44.2]} 20... b5 {[%clk
0:03:36.2]} 21. Nc5 {[%clk 0:03:42.1]} 21... b4 {[%clk 0:03:32.5]} 22. N3a4
{[%clk 0:03:29.1]} 22... a5 {[%clk 0:03:30.6]} 23. Bb5 {[%clk 0:03:18.1]} 23...
Rc8 {[%clk 0:03:17.3]} 24. Ba6 {[%clk 0:03:08.6]} 24... Rb8 {[%clk 0:03:02.2]}
25. Bb7 {[%clk 0:02:57.1]} 25... h5 {[%clk 0:02:54.2]} 26. Bd5 {[%clk
0:02:50.7]} 26... Rc8 {[%clk 0:02:38.6]} 27. Nb3 {[%clk 0:02:48]} 27... Nxd5
{[%clk 0:02:22]} 28. Rxd5 {[%clk 0:02:44]} 28... Nc4 {[%clk 0:02:09.3]} 29. Rc5
{[%clk 0:02:35.1]} 29... Rd8 {[%clk 0:02:03.5]} 30. Rd5 {[%clk 0:02:22.2]} 30...
Re8 {[%clk 0:01:58.6]} 31. Rd4 {[%clk 0:02:10.4]} 31... Ne3 {[%clk 0:01:56.6]}
32. Nxa5 {[%clk 0:02:09.2]} 32... Nxg2 {[%clk 0:01:54]} 33. Nb7 {[%clk
0:01:41.4]} 33... Nxh4 {[%clk 0:01:48.4]} 34. Nd6 {[%clk 0:01:40.6]} 34... Rd8
{[%clk 0:01:40.4]} 35. Nc5 {[%clk 0:01:29.6]} 35... Nf3 {[%clk 0:01:37.5]} 36.
Rd5 {[%clk 0:01:15.4]} 36... h4 {[%clk 0:01:33.8]} 37. Ncb7 {[%clk 0:01:09.9]}
37... Rb8 {[%clk 0:01:27]} 38. Nc5 {[%clk 0:00:40.7]} 38... h3 {[%clk 0:01:22]}
39. Nf5 {[%clk 0:00:32.1]} 39... Bxf5 {[%clk 0:00:57.1]} 40. Rxf5 {[%clk
0:00:32]} 40... h2 {[%clk 0:00:55.6]} 41. Rh5 {[%clk 0:00:31.3]} 41... g6 {[%clk
0:00:52.3]} 42. Rh3 {[%clk 0:00:30.5]} 42... g5 {[%clk 0:00:44.3]} 43. Nd7
{[%clk 0:00:26.9]} 43... Rd8 {[%clk 0:00:37.7]} 44. Nf6+ {[%clk 0:00:26]} 44...
Kg7 {[%clk 0:00:35.5]} 45. Ng4 {[%clk 0:00:25]} 45... Rh8 {[%clk 0:00:27.6]} 46.
Rxh8 {[%clk 0:00:22.2]} 46... Kxh8 {[%clk 0:00:26.4]} 47. Nf2 {[%clk 0:00:19.1]}
47... g4 {[%clk 0:00:23.3]} 48. Nh1 {[%clk 0:00:16.5]} 48... Ng5 {[%clk
0:00:19.8]} 49. a4 {[%clk 0:00:16.2]} 49... bxa3 {[%clk 0:00:17.1]} 50. bxa3
{[%clk 0:00:15.2]} 50... Nxe4 {[%clk 0:00:16.3]} 51. a4 {[%clk 0:00:14.5]} 51...
g3 {[%clk 0:00:15.3]} 52. a5 {[%clk 0:00:11.7]} 52... g2 {[%clk 0:00:14]} 53. a6
{[%clk 0:00:10.1]} 53... gxh1=N {[%clk 0:00:10.6]} 54. Kb2 {[%clk 0:00:10]}
54... Nhg3 {[%clk 0:00:06.6]} 55. a7 {[%clk 0:00:08]} 55... h1=Q {[%clk
0:00:06.5]} 56. a8=Q+ {[%clk 0:00:07]} 56... Kg7 {[%clk 0:00:03.6]} 57. Qd5
{[%clk 0:00:04.7]} 57... Qe1 {[%clk 0:00:03.5]} 58. Qe5+ {[%clk 0:00:03.5]}
58... f6 {[%clk 0:00:02.2]} 59. Qe7+ {[%clk 0:00:02.5]} 59... Kg6 {[%clk
0:00:01.5]} 60. Qe8+ {[%clk 0:00:02]} 60... Kf5 {[%clk 0:00:01.1]} 61. Qd7+
{[%clk 0:00:00.7]} 61... Kf4 {[%clk 0:00:00.4]} 0-1

[Event "Live Chess"]
[Site "Chess.com"]
[Date "2024.06.02"]
[Round "-"]
[White "CarmelJane"]
[Black "booktrunk"]
[Result "1-0"]
[WhiteElo "2079"]
[BlackElo "1499"]
[TimeControl "300"]
[EndTime "17:39:56 PDT"]
[Termination "CarmelJane won by resignation"]

1. e4 {[%clk 0:04:57.8]} 1... e6 {[%clk 0:04:58.5]} 2. d4 {[%clk 0:04:56.1]}
2... b6 {[%clk 0:04:57.5]} 3. Bd3 {[%clk 0:04:51.9]} 3... Bb7 {[%clk 0:04:48.1]}
4. Qe2 {[%clk 0:04:48.6]} 4... h6 {[%clk 0:04:44.4]} 5. Nf3 {[%clk 0:04:45.3]}
5... Nf6 {[%clk 0:04:39.5]} 6. O-O {[%clk 0:04:43.8]} 6... Be7 {[%clk
0:04:37.2]} 7. e5 {[%clk 0:04:33.7]} 7... Nd5 {[%clk 0:04:25.7]} 8. c4 {[%clk
0:04:28.4]} 8... Nb4 {[%clk 0:04:23.8]} 9. Be4 {[%clk 0:04:27.6]} 9... Bxe4
{[%clk 0:04:03.7]} 10. Qxe4 {[%clk 0:04:25.1]} 10... c6 {[%clk 0:03:58.7]} 11.
a3 {[%clk 0:04:23.8]} 11... N4a6 {[%clk 0:03:56.7]} 12. Nc3 {[%clk 0:04:21.7]}
12... Nc7 {[%clk 0:03:55.3]} 13. b4 {[%clk 0:04:19.8]} 13... d5 {[%clk
0:03:52.9]} 14. cxd5 {[%clk 0:04:19.1]} 14... exd5 {[%clk 0:03:51.4]} 15. Qd3
{[%clk 0:04:15.7]} 15... Ne6 {[%clk 0:03:44]} 16. Ne2 {[%clk 0:04:14.1]} 16...
a6 {[%clk 0:03:37.6]} 17. Nf4 {[%clk 0:04:06.3]} 17... Nxf4 {[%clk 0:03:35.1]}
18. Bxf4 {[%clk 0:04:06.2]} 18... Nd7 {[%clk 0:03:33]} 19. Rac1 {[%clk
0:04:03.9]} 19... Qc8 {[%clk 0:03:29.2]} 20. e6 {[%clk 0:03:59.6]} 20... fxe6
{[%clk 0:03:27.8]} 21. Qg6+ {[%clk 0:03:58.2]} 21... Kd8 {[%clk 0:03:17.6]} 22.
Qxe6 {[%clk 0:03:56.2]} 22... Nf8 {[%clk 0:03:12]} 23. Qf7 {[%clk 0:03:47.8]}
23... Rh7 {[%clk 0:03:00.3]} 24. Rfe1 {[%clk 0:03:45.7]} 24... Qd7 {[%clk
0:02:56.1]} 25. Ne5 {[%clk 0:03:39.5]} 25... Qe8 {[%clk 0:02:48.3]} 26. Nxc6+
{[%clk 0:03:33.5]} 26... Kd7 {[%clk 0:02:40.1]} 27. Rxe7+ {[%clk 0:03:31.4]} 1-0

[Event "Live Chess"]
[Site "Chess.com"]
[Date "2024.06.02"]
[Round "-"]
[White "RichardABates"]
[Black "nigelst"]
[Result "1-0"]
[WhiteElo "2347"]
[BlackElo "1716"]
[TimeControl "300"]
[EndTime "17:40:37 PDT"]
[Termination "RichardABates won by resignation"]

1. d4 {[%clk 0:04:57.4]} 1... Nf6 {[%clk 0:04:58.1]} 2. Nf3 {[%clk 0:04:55.5]}
2... e6 {[%clk 0:04:57.5]} 3. c4 {[%clk 0:04:53.9]} 3... c5 {[%clk 0:04:57]} 4.
d5 {[%clk 0:04:52.5]} 4... d6 {[%clk 0:04:56.3]} 5. Nc3 {[%clk 0:04:49.8]} 5...
e5 {[%clk 0:04:54.9]} 6. e4 {[%clk 0:04:48]} 6... Bg4 {[%clk 0:04:53.3]} 7. Be2
{[%clk 0:04:45]} 7... Nbd7 {[%clk 0:04:50.8]} 8. Nd2 {[%clk 0:04:39.3]} 8... Be7
{[%clk 0:04:48.3]} 9. Bxg4 {[%clk 0:04:37.3]} 9... Nxg4 {[%clk 0:04:47.1]} 10.
Qxg4 {[%clk 0:04:35.5]} 10... Nf6 {[%clk 0:04:46.7]} 11. Qe2 {[%clk 0:04:32.1]}
1-0

[Event "Live Chess"]
[Site "Chess.com"]
[Date "2024.06.02"]
[Round "-"]
[White "stevochess11"]
[Black "Thebigsqueeze"]
[Result "1-0"]
[WhiteElo "1692"]
[BlackElo "2272"]
[TimeControl "300"]
[EndTime "17:40:51 PDT"]
[Termination "stevochess11 won by resignation"]

1. d4 {[%clk 0:04:55]} 1... Nf6 {[%clk 0:04:57.4]} 2. Nf3 {[%clk 0:04:49.4]}
2... g6 {[%clk 0:04:55.1]} 3. Nc3 {[%clk 0:04:48.2]} 3... Bg7 {[%clk 0:04:54.5]}
4. e4 {[%clk 0:04:47.3]} 4... O-O {[%clk 0:04:53.3]} 5. Be3 {[%clk 0:04:46.1]}
5... d5 {[%clk 0:04:52.1]} 6. e5 {[%clk 0:04:44.4]} 6... Ne8 {[%clk 0:04:51.6]}
7. Qd2 {[%clk 0:04:43.2]} 7... f6 {[%clk 0:04:50.5]} 8. Bh6 {[%clk 0:04:41.2]}
8... fxe5 {[%clk 0:04:48.7]} 9. dxe5 {[%clk 0:04:37.6]} 9... e6 {[%clk
0:04:35.8]} 10. h4 {[%clk 0:04:30]} 10... Nc6 {[%clk 0:04:16.8]} 11. h5 {[%clk
0:04:25.2]} 11... Rxf3 {[%clk 0:04:04.9]} 12. gxf3 {[%clk 0:04:13.8]} 12... Nxe5
{[%clk 0:04:03.3]} 13. Be2 {[%clk 0:04:01.4]} 13... Qf6 {[%clk 0:03:51.5]} 14.
hxg6 {[%clk 0:03:53.2]} 14... hxg6 {[%clk 0:03:49.8]} 15. O-O-O {[%clk
0:03:47.6]} 15... Bd7 {[%clk 0:03:44.8]} 16. Rdg1 {[%clk 0:03:36]} 16... b5
{[%clk 0:03:34.5]} 17. Nxd5 {[%clk 0:03:12]} 17... exd5 {[%clk 0:03:28.2]} 18.
Qxd5+ {[%clk 0:03:10.6]} 18... Nf7 {[%clk 0:03:03.5]} 19. Bxg7 {[%clk 0:03:00]}
19... Qf4+ {[%clk 0:02:21.6]} 20. Kb1 {[%clk 0:02:44.7]} 20... Kxg7 {[%clk
0:02:20.3]} 21. Qxa8 {[%clk 0:02:16.1]} 21... Qd2 {[%clk 0:02:18.8]} 22. Qe4
{[%clk 0:02:06.1]} 22... Ned6 {[%clk 0:01:47.6]} 23. Qd3 {[%clk 0:01:55.2]}
23... Qf4 {[%clk 0:01:45.3]} 24. Qc3+ {[%clk 0:01:53.4]} 24... Kf8 {[%clk
0:01:43.9]} 25. Rxg6 {[%clk 0:01:40]} 25... Bf5 {[%clk 0:01:39.6]} 26. Rf6
{[%clk 0:01:20]} 26... b4 {[%clk 0:01:35.1]} 27. Rxf7+ {[%clk 0:01:13]} 27...
Kxf7 {[%clk 0:01:27]} 28. Qxc7+ {[%clk 0:01:07]} 28... Ke6 {[%clk 0:01:20.9]}
29. Re1 {[%clk 0:00:57]} 29... Kd5 {[%clk 0:00:55.4]} 30. Qxa7 {[%clk
0:00:46.9]} 30... Bg6 {[%clk 0:00:33.1]} 31. Rd1+ {[%clk 0:00:44.8]} 31... Ke6
{[%clk 0:00:31.3]} 32. Qd4 {[%clk 0:00:40.9]} 32... Qh2 {[%clk 0:00:24.5]} 33.
Qd5+ {[%clk 0:00:38.9]} 33... Ke7 {[%clk 0:00:22.2]} 34. Qe5+ {[%clk 0:00:36.9]}
34... Kd7 {[%clk 0:00:19.3]} 35. Qxh2 {[%clk 0:00:35.8]} 1-0

[Event "Live Chess"]
[Site "Chess.com"]
[Date "2024.06.02"]
[Round "-"]
[White "KnightStripes"]
[Black "KeithArkell"]
[Result "0-1"]
[WhiteElo "917"]
[BlackElo "2425"]
[TimeControl "300"]
[EndTime "17:40:54 PDT"]
[Termination "KeithArkell won by checkmate"]

1. d4 {[%clk 0:04:56.9]} 1... c5 {[%clk 0:04:59.2]} 2. d5 {[%clk 0:04:54.1]}
2... e5 {[%clk 0:04:58.2]} 3. Nc3 {[%clk 0:04:53]} 3... d6 {[%clk 0:04:57.7]} 4.
e4 {[%clk 0:04:46]} 4... Be7 {[%clk 0:04:57.3]} 5. Nf3 {[%clk 0:04:42.5]} 5...
Bg4 {[%clk 0:04:55.5]} 6. h3 {[%clk 0:04:41]} 6... Bxf3 {[%clk 0:04:54.5]} 7.
Qxf3 {[%clk 0:04:39.9]} 7... Bg5 {[%clk 0:04:54]} 8. Bxg5 {[%clk 0:04:35.1]}
8... Qxg5 {[%clk 0:04:52.8]} 9. h4 {[%clk 0:04:34.4]} 9... Qf6 {[%clk
0:04:51.3]} 10. Nb5 {[%clk 0:04:24.5]} 10... Qxf3 {[%clk 0:04:48.1]} 11. Nc7+
{[%clk 0:04:22.2]} 11... Kd7 {[%clk 0:04:46.9]} 12. gxf3 {[%clk 0:04:09.7]}
12... Kxc7 {[%clk 0:04:45.9]} 13. O-O-O {[%clk 0:04:08]} 13... Nf6 {[%clk
0:04:45]} 14. Rg1 {[%clk 0:04:05.1]} 14... Nh5 {[%clk 0:04:43.4]} 15. Be2 {[%clk
0:04:01.8]} 15... Nf4 {[%clk 0:04:41.6]} 16. Rde1 {[%clk 0:03:51.1]} 16... g6
{[%clk 0:04:40.7]} 17. Kd2 {[%clk 0:03:36.9]} 17... Nd7 {[%clk 0:04:39.7]} 18.
Kc3 {[%clk 0:03:35.7]} 18... f6 {[%clk 0:04:38.9]} 19. Kb3 {[%clk 0:03:34.1]}
19... h6 {[%clk 0:04:32.9]} 20. Ka4 {[%clk 0:03:29.1]} 20... g5 {[%clk 0:04:32]}
21. hxg5 {[%clk 0:03:27.6]} 21... fxg5 {[%clk 0:04:31.6]} 22. Rh1 {[%clk
0:03:24.4]} 22... a6 {[%clk 0:04:30.5]} 23. Reg1 {[%clk 0:03:22.5]} 23... b5+
{[%clk 0:04:29.5]} 24. Ka5 {[%clk 0:03:21.2]} 24... Nxe2 {[%clk 0:04:25.4]} 25.
Rg2 {[%clk 0:03:11.1]} 25... Nb6 {[%clk 0:04:25.3]} 26. Rgh2 {[%clk 0:03:09.3]}
26... Nc4# {[%clk 0:04:24.5]} 0-1

[Event "Live Chess"]
[Site "Chess.com"]
[Date "2024.06.02"]
[Round "-"]
[White "ShanthamGrarks"]
[Black "MagnersCarlsberg2870"]
[Result "1-0"]
[WhiteElo "1858"]
[BlackElo "1764"]
[TimeControl "300"]
[EndTime "17:41:11 PDT"]
[Termination "ShanthamGrarks won by resignation"]

1. d4 {[%clk 0:04:57]} 1... Nf6 {[%clk 0:04:58.6]} 2. Nc3 {[%clk 0:04:55.2]}
2... e6 {[%clk 0:04:56.6]} 3. e4 {[%clk 0:04:54.6]} 3... Bb4 {[%clk 0:04:55.7]}
4. Bg5 {[%clk 0:04:53.5]} 4... h6 {[%clk 0:04:54.4]} 5. Bxf6 {[%clk 0:04:52.2]}
5... Qxf6 {[%clk 0:04:53.3]} 6. Nf3 {[%clk 0:04:52.1]} 6... d5 {[%clk
0:04:47.3]} 7. e5 {[%clk 0:04:49.8]} 7... Qe7 {[%clk 0:04:46.4]} 8. Bd3 {[%clk
0:04:48.6]} 8... c5 {[%clk 0:04:45.2]} 9. dxc5 {[%clk 0:04:43.5]} 9... Bxc5
{[%clk 0:04:40.5]} 10. O-O {[%clk 0:04:42]} 10... a6 {[%clk 0:04:37.9]} 11. a3
{[%clk 0:04:39.5]} 11... Nc6 {[%clk 0:04:36.6]} 12. b4 {[%clk 0:04:36.9]} 12...
Ba7 {[%clk 0:04:33.4]} 13. Ne2 {[%clk 0:04:31.4]} 13... Qc7 {[%clk 0:04:29.9]}
14. Qd2 {[%clk 0:04:18]} 14... Nxe5 {[%clk 0:04:27.1]} 15. Nxe5 {[%clk
0:04:16.2]} 15... Qxe5 {[%clk 0:04:25.7]} 16. Rae1 {[%clk 0:04:15.4]} 16... Qh5
{[%clk 0:04:17.8]} 17. Ng3 {[%clk 0:04:12.7]} 17... Qh4 {[%clk 0:04:10.4]} 18.
Nf5 {[%clk 0:03:58]} 18... Qg5 {[%clk 0:03:57.6]} 19. Qxg5 {[%clk 0:03:53.2]}
19... hxg5 {[%clk 0:03:56.6]} 20. c4 {[%clk 0:03:39.8]} 20... O-O {[%clk
0:03:47.5]} 21. Ne7+ {[%clk 0:03:35.4]} 21... Kh8 {[%clk 0:03:46.2]} 22. c5
{[%clk 0:03:30.2]} 22... Re8 {[%clk 0:03:40.3]} 23. Nxd5 {[%clk 0:03:23]} 23...
e5 {[%clk 0:03:30.5]} 24. Nc7 {[%clk 0:03:21.2]} 24... Bd7 {[%clk 0:03:26.8]}
25. Nxa8 {[%clk 0:03:18.1]} 25... Rxa8 {[%clk 0:03:25.9]} 26. Rxe5 {[%clk
0:03:14.6]} 26... f6 {[%clk 0:03:19.9]} 27. Re7 {[%clk 0:03:12.8]} 27... Rd8
{[%clk 0:03:17.7]} 28. Bg6 {[%clk 0:03:08.5]} 28... Bc6 {[%clk 0:03:12.9]} 29.
Rfe1 {[%clk 0:03:02.9]} 29... Bb8 {[%clk 0:03:09.7]} 30. g3 {[%clk 0:02:52.7]}
30... Be5 {[%clk 0:03:08]} 31. h4 {[%clk 0:02:41.8]} 31... gxh4 {[%clk
0:03:04.2]} 32. gxh4 {[%clk 0:02:40.5]} 32... Rd4 {[%clk 0:02:56.6]} 33. Rf7
{[%clk 0:02:30.9]} 33... Rg4+ {[%clk 0:02:53.1]} 34. Kf1 {[%clk 0:02:26.9]}
34... Bb5+ {[%clk 0:02:46.7]} 35. Re2 {[%clk 0:02:16.6]} 35... Rxg6 {[%clk
0:02:45]} 36. Rxb7 {[%clk 0:02:13.1]} 36... Bxe2+ {[%clk 0:02:39.4]} 37. Kxe2
{[%clk 0:02:12]} 37... f5 {[%clk 0:02:33.5]} 38. Kd3 {[%clk 0:02:02.8]} 38...
Bb2 {[%clk 0:02:25.8]} 39. a4 {[%clk 0:02:01.9]} 39... Ba3 {[%clk 0:02:23.6]}
40. Kc4 {[%clk 0:02:00.3]} 40... Rg4+ {[%clk 0:02:18.4]} 41. Kd5 {[%clk
0:01:59.1]} 41... Rxh4 {[%clk 0:02:17.4]} 42. c6 {[%clk 0:01:57.1]} 42... Rh1
{[%clk 0:02:09.1]} 43. b5 {[%clk 0:01:53.2]} 43... axb5 {[%clk 0:02:06]} 44.
axb5 {[%clk 0:01:52.1]} 44... Rd1+ {[%clk 0:02:03.9]} 45. Ke6 {[%clk 0:01:50]}
45... f4 {[%clk 0:01:57.2]} 46. c7 {[%clk 0:01:46.2]} 46... Rc1 {[%clk
0:01:54.9]} 47. Rb8+ {[%clk 0:01:45.2]} 47... Kh7 {[%clk 0:01:53.4]} 48. c8=Q
{[%clk 0:01:44]} 1-0

[Event "Live Chess"]
[Site "Chess.com"]
[Date "2024.06.02"]
[Round "-"]
[White "Dhaydon19"]
[Black "Queensandpawns"]
[Result "1-0"]
[WhiteElo "2679"]
[BlackElo "2309"]
[TimeControl "300"]
[EndTime "17:41:56 PDT"]
[Termination "Dhaydon19 won by resignation"]

1. d4 {[%clk 0:04:58.2]} 1... Nc6 {[%clk 0:04:55.4]} 2. c3 {[%clk 0:04:57.5]}
2... e5 {[%clk 0:04:53.6]} 3. Nf3 {[%clk 0:04:57.2]} 3... e4 {[%clk 0:04:52.9]}
4. Nfd2 {[%clk 0:04:56.5]} 4... e3 {[%clk 0:04:52.6]} 5. fxe3 {[%clk 0:04:55.4]}
5... d5 {[%clk 0:04:52.2]} 6. g3 {[%clk 0:04:54.3]} 6... h5 {[%clk 0:04:51.1]}
7. Nf3 {[%clk 0:04:52.8]} 7... h4 {[%clk 0:04:49.6]} 8. gxh4 {[%clk 0:04:51.5]}
8... Nf6 {[%clk 0:04:49]} 9. Nbd2 {[%clk 0:04:41.5]} 9... Ne4 {[%clk 0:04:48.9]}
10. Nxe4 {[%clk 0:04:40.3]} 10... dxe4 {[%clk 0:04:48.8]} 11. Ng1 {[%clk
0:04:34]} 11... Qxh4+ {[%clk 0:04:38.7]} 12. Kd2 {[%clk 0:04:33.1]} 12... Bd6
{[%clk 0:04:38.4]} 13. Bg2 {[%clk 0:04:27.9]} 13... Bg4 {[%clk 0:04:21.3]} 14.
Bxe4 {[%clk 0:04:23.5]} 14... O-O-O {[%clk 0:04:19.8]} 15. Nf3 {[%clk
0:04:17.5]} 15... Bxf3 {[%clk 0:04:05.6]} 16. Bxf3 {[%clk 0:04:15.3]} 16... g5
{[%clk 0:04:05.5]} 17. h3 {[%clk 0:04:12.5]} 17... f5 {[%clk 0:04:01.3]} 18. Qc2
{[%clk 0:04:08.2]} 18... Ne5 {[%clk 0:03:44.7]} 19. Qxf5+ {[%clk 0:04:05.9]}
19... Kb8 {[%clk 0:03:42.7]} 20. dxe5 {[%clk 0:04:05]} 20... Bxe5+ {[%clk
0:03:41.9]} 21. Kc2 {[%clk 0:04:04]} 1-0

[Event "Live Chess"]
[Site "Chess.com"]
[Date "2024.06.02"]
[Round "-"]
[White "RockTroll"]
[Black "gobbles19"]
[Result "0-1"]
[WhiteElo "2200"]
[BlackElo "2272"]
[TimeControl "300"]
[EndTime "17:42:11 PDT"]
[Termination "gobbles19 won by resignation"]

1. e4 {[%clk 0:04:58.7]} 1... d6 {[%clk 0:04:58.5]} 2. d4 {[%clk 0:04:57]} 2...
Nf6 {[%clk 0:04:57.6]} 3. f3 {[%clk 0:04:56.5]} 3... g6 {[%clk 0:04:57.3]} 4. c4
{[%clk 0:04:54.8]} 4... Bg7 {[%clk 0:04:56.7]} 5. Nc3 {[%clk 0:04:54.4]} 5...
O-O {[%clk 0:04:51.7]} 6. Nge2 {[%clk 0:04:53.6]} 6... Na6 {[%clk 0:04:50.9]} 7.
Be3 {[%clk 0:04:52.1]} 7... c5 {[%clk 0:04:45.8]} 8. d5 {[%clk 0:04:50.8]} 8...
Nc7 {[%clk 0:04:44.9]} 9. a4 {[%clk 0:04:50.1]} 9... b6 {[%clk 0:04:38]} 10. Ng3
{[%clk 0:04:45.1]} 10... e6 {[%clk 0:04:31.4]} 11. Be2 {[%clk 0:04:43.9]} 11...
exd5 {[%clk 0:04:30.4]} 12. cxd5 {[%clk 0:04:43.8]} 12... a6 {[%clk 0:04:27]}
13. O-O {[%clk 0:04:41]} 13... Re8 {[%clk 0:04:25.5]} 14. Qd2 {[%clk 0:04:38.2]}
14... Bb7 {[%clk 0:04:19.8]} 15. f4 {[%clk 0:04:36.4]} 15... Nfxd5 {[%clk
0:04:15.6]} 16. exd5 {[%clk 0:04:33.2]} 16... Rxe3 {[%clk 0:04:14.2]} 17. f5
{[%clk 0:04:23.9]} 17... Re5 {[%clk 0:03:54.8]} 18. Bc4 {[%clk 0:04:06.7]} 18...
b5 {[%clk 0:03:47.2]} 19. axb5 {[%clk 0:04:04.8]} 19... axb5 {[%clk 0:03:47.1]}
20. Rxa8 {[%clk 0:04:03.1]} 20... Bxa8 {[%clk 0:03:39.6]} 21. Bxb5 {[%clk
0:03:35.6]} 21... Nxb5 {[%clk 0:03:36.4]} 22. Nxb5 {[%clk 0:03:34.9]} 22... Rxd5
{[%clk 0:03:26]} 23. Qc2 {[%clk 0:03:23.5]} 23... Re5 {[%clk 0:03:03.2]} 24. Ra1
{[%clk 0:02:49.9]} 24... Re8 {[%clk 0:02:54]} 25. h3 {[%clk 0:02:37.8]} 25...
Be5 {[%clk 0:02:41.7]} 26. Ne4 {[%clk 0:02:35.2]} 26... Bxe4 {[%clk 0:02:40.1]}
0-1

[Event "Live Chess"]
[Site "Chess.com"]
[Date "2024.06.02"]
[Round "-"]
[White "ACM42"]
[Black "NAZRIZ1977"]
[Result "1-0"]
[WhiteElo "2169"]
[BlackElo "2138"]
[TimeControl "300"]
[EndTime "17:42:38 PDT"]
[Termination "ACM42 won by resignation"]

1. e4 {[%clk 0:04:59]} 1... c5 {[%clk 0:04:58.7]} 2. Nf3 {[%clk 0:04:58.2]} 2...
d6 {[%clk 0:04:58]} 3. d4 {[%clk 0:04:57.7]} 3... cxd4 {[%clk 0:04:57.4]} 4.
Nxd4 {[%clk 0:04:57.3]} 4... Nf6 {[%clk 0:04:57]} 5. Nc3 {[%clk 0:04:56.7]} 5...
g6 {[%clk 0:04:56.6]} 6. f4 {[%clk 0:04:55.3]} 6... a6 {[%clk 0:04:54.9]} 7. e5
{[%clk 0:04:54.5]} 7... dxe5 {[%clk 0:04:54]} 8. fxe5 {[%clk 0:04:54]} 8... Nd5
{[%clk 0:04:53.7]} 9. Bc4 {[%clk 0:04:51.5]} 9... Nxc3 {[%clk 0:04:51.2]} 10.
bxc3 {[%clk 0:04:50.9]} 10... Bg7 {[%clk 0:04:50.8]} 11. O-O {[%clk 0:04:47.2]}
11... O-O {[%clk 0:04:49.8]} 12. e6 {[%clk 0:04:41.2]} 12... f5 {[%clk
0:04:48.7]} 13. Bf4 {[%clk 0:04:24.1]} 13... Nc6 {[%clk 0:04:41.6]} 14. Nxc6
{[%clk 0:04:17.9]} 14... bxc6 {[%clk 0:04:40]} 15. Rb1 {[%clk 0:04:13.1]} 15...
Qa5 {[%clk 0:04:30.7]} 16. Kh1 {[%clk 0:03:53.5]} 16... Qxc3 {[%clk 0:04:24.9]}
17. Qe2 {[%clk 0:03:46.4]} 17... a5 {[%clk 0:04:14]} 18. Rf3 {[%clk 0:03:44.6]}
18... Qf6 {[%clk 0:04:07.7]} 19. Bc7 {[%clk 0:03:27.9]} 19... g5 {[%clk
0:03:58.7]} 20. Rbf1 {[%clk 0:02:31]} 20... f4 {[%clk 0:03:54.1]} 21. g3 {[%clk
0:02:28.2]} 21... a4 {[%clk 0:03:35]} 22. gxf4 {[%clk 0:02:25.1]} 22... Qg6
{[%clk 0:03:33.6]} 23. fxg5 {[%clk 0:02:14.4]} 23... Rxf3 {[%clk 0:03:29.2]} 24.
Qxf3 {[%clk 0:02:12.7]} 24... Bb7 {[%clk 0:03:21.8]} 25. Re1 {[%clk 0:01:36.3]}
25... Rf8 {[%clk 0:02:46.6]} 26. Qg2 {[%clk 0:01:29.2]} 26... Qh5 {[%clk
0:02:27.3]} 27. Bd3 {[%clk 0:01:21.9]} 27... Qh4 {[%clk 0:02:21.3]} 28. Rg1
{[%clk 0:00:53]} 28... Rf2 {[%clk 0:02:16.3]} 29. Bg3 {[%clk 0:00:40.7]} 29...
Rxg2 {[%clk 0:02:05.1]} 30. Bxh4 {[%clk 0:00:39.3]} 30... Rd2 {[%clk 0:01:59.9]}
31. Rb1 {[%clk 0:00:37.1]} 31... Ba6 {[%clk 0:01:53.2]} 32. Rb8+ {[%clk
0:00:33.7]} 32... Bf8 {[%clk 0:01:51.3]} 33. Bxa6 {[%clk 0:00:32.4]} 33... Rxc2
{[%clk 0:01:47.6]} 34. g6 {[%clk 0:00:31.5]} 34... hxg6 {[%clk 0:01:30.9]} 35.
Bxe7 {[%clk 0:00:30]} 35... Kg7 {[%clk 0:01:30.8]} 36. Bxf8+ {[%clk 0:00:28.5]}
1-0

[Event "Live Chess"]
[Site "Chess.com"]
[Date "2024.06.02"]
[Round "-"]
[White "booktrunk"]
[Black "RichardABates"]
[Result "0-1"]
[WhiteElo "1499"]
[BlackElo "2347"]
[TimeControl "300"]
[EndTime "17:42:54 PDT"]
[Termination "RichardABates won by resignation"]

1. d4 {[%clk 0:04:52.8]} 1... Nf6 {[%clk 0:04:58.4]} 2. Nc3 {[%clk 0:04:48]}
2... d5 {[%clk 0:04:56.4]} 3. Bf4 {[%clk 0:04:45.1]} 3... c5 {[%clk 0:04:55.1]}
4. dxc5 {[%clk 0:04:42]} 4... Nc6 {[%clk 0:04:52.6]} 5. e3 {[%clk 0:04:40]} 5...
e5 {[%clk 0:04:50.9]} 6. Bg5 {[%clk 0:04:37.8]} 6... Be6 {[%clk 0:04:49.8]} 7.
Bxf6 {[%clk 0:04:35.8]} 7... gxf6 {[%clk 0:04:48.9]} 8. Nf3 {[%clk 0:04:32.4]}
8... Bxc5 {[%clk 0:04:46.1]} 9. Bb5 {[%clk 0:04:30.4]} 9... Rg8 {[%clk
0:04:38.8]} 10. Bxc6+ {[%clk 0:04:24.8]} 10... bxc6 {[%clk 0:04:37.3]} 11. g3
{[%clk 0:04:21.3]} 11... Bg4 {[%clk 0:04:32]} 12. O-O {[%clk 0:04:03.3]} 12...
e4 {[%clk 0:04:30.2]} 13. Qd2 {[%clk 0:03:59.4]} 13... Bxf3 {[%clk 0:04:28.5]}
14. Na4 {[%clk 0:03:55.2]} 14... Qd7 {[%clk 0:04:24]} 15. Nxc5 {[%clk
0:03:38.4]} 15... Qh3 {[%clk 0:04:21.3]} 0-1